fUST/lending_fUST_20250516
["ID","MTS","AMOUNT","RATE_DAILY","PERIOD"]
[361237832,1747386634322,-400.0,0.00013698,2]
[361237833,1747386634332,-400.0,0.00013698,2]
[361237834,1747386634342,-400.0,0.00013698,2]
[361237835,1747386634351,-400.0,0.00013698,2]
[361237836,1747386634606,-400.0,0.00013698,2]
[361237837,1747386634616,-450.0,0.00013698,2]
[361237838,1747386634626,-400.0,0.00013698,2]
[361237839,1747386634636,-835.1,0.00013698,2]
[361237840,1747386634646,-450.0,0.00013698,2]
[361237841,1747386634655,-400.0,0.00013698,2]
[361237842,1747386634665,-400.0,0.00013698,2]
[361237843,1747386634675,-400.0,0.00013698,2]
[361237844,1747386634685,-503.97,0.00013698,2]
[361237845,1747386634694,-400.0,0.00013698,2]
[361237846,1747386634703,-400.0,0.00013698,2]
[361237847,1747386634712,-400.0,0.00013698,2]
[361237848,1747386634722,-450.0,0.00013698,2]
[361237849,1747386634731,-400.0,0.00013698,2]
[361237850,1747386634741,-400.0,0.00013698,2]
[361237851,1747386634750,-400.0,0.00013698,2]
[361237852,1747386634759,-400.0,0.00013698,2]
[361237853,1747386634768,-400.0,0.00013698,2]
[361237854,1747386634778,-450.0,0.00013698,2]
[361237855,1747386634787,-958.69,0.00013698,2]
[361237856,1747386634796,-1818.67,0.00013698,2]
[361237857,1747386634808,-450.0,0.00013698,2]
[361237858,1747386634820,-450.0,0.00013698,2]
[361237859,1747386634833,-400.0,0.00013698,2]
[361237860,1747386634843,-450.0,0.00013698,2]
[361237861,1747386634852,-450.0,0.00013698,2]
[361237862,1747386634861,-400.0,0.00013698,2]
[361237863,1747386634871,-450.0,0.00013698,2]
[361237864,1747386634881,-450.0,0.00013698,2]
[361237865,1747386634891,-400.0,0.00013698,2]
[361237866,1747386634900,-450.0,0.00013698,2]
[361237867,1747386634910,-505.92554818,0.00013698,2]
[361237868,1747386634919,-400.0,0.00013698,2]
[361237869,1747386634928,-450.0,0.00013698,2]
[361237870,1747386634937,-609.04,0.00013698,2]
[361237871,1747386634947,-1502.09,0.00013698,2]
[361237873,1747386634956,-1843.89,0.00013698,2]
[361237875,1747386634965,-400.0,0.00013698,2]
[361237877,1747386634975,-915.63,0.00013698,2]
[361237879,1747386634984,-1002.57,0.00013698,2]
[361237881,1747386634993,-1072.1,0.00013698,2]
[361237883,1747386635002,-900.15,0.00013698,2]
[361237885,1747386635011,-395.0,0.00013698,2]
[361237887,1747386635020,-400.0,0.00013698,2]
[361237889,1747386635029,-400.0,0.00013698,2]
[361237891,1747386635039,-509.05463221,0.00013698,2]
[361237892,1747386635048,-400.0,0.00013698,2]
[361237894,1747386635057,-807.18,0.00013698,2]
[361237896,1747386635066,-450.0,0.00013698,2]
[361237897,1747386635076,-1856.18,0.00013698,2]
[361237898,1747386635085,-450.0,0.00013698,2]
[361237899,1747386635094,-450.0,0.00013698,2]
[361237901,1747386635103,-207.6844042,0.00013698,2]
[361237903,1747386635112,-531.68632411,0.00013698,2]
[361237905,1747386635122,-1228.02,0.00013698,2]
[361237906,1747386635132,-1051.14,0.00013698,2]
[361237907,1747386635141,-450.0,0.00013698,2]
[361237908,1747386635151,-450.0,0.00013698,2]
[361237909,1747386635160,-450.0,0.00013698,2]
[361237910,1747386635169,-1018.05,0.00013698,2]
[361237911,1747386635179,-521.33,0.00013698,2]
[361237912,1747386635189,-1008.1,0.00013698,2]
[361237913,1747386635198,-536.04,0.00013698,2]
[361237914,1747386635208,-4338.11,0.00013698,2]
[361237915,1747386635218,-2951.78,0.00013698,2]
[361237916,1747386635228,-450.0,0.00013698,2]
[361237917,1747386635237,-450.0,0.00013698,2]
[361237918,1747386635247,-450.0,0.00013698,2]
[361237919,1747386635257,-5428.22,0.00013698,2]
[361237920,1747386635267,-450.0,0.00013698,2]
[361237921,1747386635277,-416.80566441,0.00013698,2]
[361237922,1747386635286,-998.12,0.00013698,2]
[361237923,1747386635296,-450.0,0.00013698,2]
[361237924,1747386635306,-450.0,0.00013698,2]
[361237925,1747386635315,-4065.78,0.00013698,2]
[361237926,1747386635325,-1248.32,0.00013698,2]
[361237927,1747386635335,-6901.5,0.00013698,2]
[361237928,1747386635344,-450.0,0.00013698,2]
[361237929,1747386635354,-2287.91,0.00013698,2]
[361237930,1747386635365,-1364.48,0.00013698,2]
[361237931,1747386635375,-722.77,0.00013698,2]
[361237932,1747386635385,-450.0,0.00013698,2]
[361237933,1747386635394,-450.0,0.00013698,2]
[361237934,1747386635403,-1700.05,0.00013698,2]
[361237935,1747386635413,-652.8,0.00013698,2]
[361237936,1747386635422,-727.78,0.00013698,2]
[361237937,1747386635434,-524.13,0.00013698,2]
[361237938,1747386635443,-450.0,0.00013698,2]
[361237939,1747386635453,-494.77,0.00013698,2]
[361237940,1747386635464,-662.99,0.00013698,2]
[361237941,1747386635477,-522.99,0.00013698,2]
[361237942,1747386635487,-239.96432287,0.00013698,2]
[361237943,1747386635496,-636.84,0.00013698,2]
[361237944,1747386635506,-2023.57,0.00013698,2]
[361237945,1747386635518,-899.44,0.00013698,2]
[361237946,1747386635528,-450.0,0.00013698,2]
[361237947,1747386635538,-450.0,0.00013698,2]
[361237948,1747386635547,-2828.7,0.00013698,2]
[361237949,1747386635557,-3470.36,0.00013698,2]
[361237950,1747386635566,-450.0,0.00013698,2]
[361237951,1747386635576,-519.95,0.00013698,2]
[361237952,1747386635585,-475.43,0.00013698,2]
[361237953,1747386635595,-732.75,0.00013698,2]
[361237954,1747386635604,-648.98,0.00013698,2]
[361237955,1747386635615,-450.0,0.00013698,2]
[361237956,1747386635627,-644.47,0.00013698,2]
[361237957,1747386635636,-450.0,0.00013698,2]
[361237958,1747386635646,-458.65,0.00013698,2]
[361237959,1747386635655,-450.0,0.00013698,2]
[361237960,1747386635664,-450.0,0.00013698,2]
[361237961,1747386635674,-456.01,0.00013698,2]
[361237962,1747386635684,-591.69,0.00013698,2]
[361237963,1747386635694,-1298.63,0.00013698,2]
[361237964,1747386635703,-876.3,0.00013698,2]
[361237965,1747386635713,-450.0,0.00013698,2]
[361237966,1747386635722,-798.03,0.00013698,2]
[361237967,1747386635731,-2349.74,0.00013698,2]
[361237968,1747386635741,-747.51,0.00013698,2]
[361237969,1747386635751,-1088.85,0.00013698,2]
[361237970,1747386635761,-450.0,0.00013698,2]
[361237971,1747386635771,-450.0,0.00013698,2]
[361237972,1747386635780,-450.0,0.00013698,2]
[361237973,1747386635790,-1330.15,0.00013698,2]
[361237974,1747386635799,-662.92,0.00013698,2]
[361237975,1747386635809,-450.0,0.00013698,2]
[361237976,1747386635818,-565.643515,0.00013699,2]
[361237977,1747386635827,-500.0,0.00013699,2]
[361237978,1747386635837,-500.0,0.00013699,2]
[361237979,1747386635847,-500.0,0.00013699,2]
[361237980,1747386635857,-500.0,0.00013699,2]
[361237981,1747386635867,-500.0,0.00013699,2]
[361237982,1747386635877,-598.68630085,0.00013699,2]
[361237983,1747386635886,-172.8307344,0.00013699,2]
[361237984,1747386635895,-250.0,0.000137,2]
[361237985,1747386635905,-250.0,0.000137,2]
[361237986,1747386635915,-250.0,0.000137,2]
[361237987,1747386635924,-546.0,0.00013793,2]
[361237988,1747386635935,-707.0,0.00013793,2]
[361237989,1747386635945,-2236.0,0.00013793,2]
[361237990,1747386635954,-2000.0,0.000138,2]
[361237991,1747386635964,-2000.0,0.000138,3]
[361237992,1747386635973,-250.0,0.000138,2]
[361237993,1747386635983,-250.0,0.000138,2]
[361237994,1747386635992,-250.0,0.000138,2]
[361237995,1747386636001,-281.9,0.000138,2]
[361237996,1747386636010,-34172.03686995,0.00013833,2]
[361237997,1747386636019,-450.0,0.00013835,2]
[361237998,1747386636028,-450.0,0.00013835,2]
[361237999,1747386636038,-450.0,0.00013835,2]
[361238000,1747386636047,-1198.62,0.00013835,2]
[361238001,1747386636056,-450.0,0.00013835,2]
[361238002,1747386636065,-450.0,0.00013835,2]
[361238003,1747386636074,-501.3,0.00013835,2]
[361238004,1747386636083,-618.05,0.00013835,2]
[361238005,1747386636093,-450.0,0.00013835,2]
[361238006,1747386636101,-450.0,0.00013835,2]
[361238007,1747386636111,-450.0,0.00013835,2]
[361238008,1747386636124,-450.0,0.00013835,2]
[361238009,1747386636134,-450.0,0.00013835,2]
[361238010,1747386636143,-515.18,0.00013835,2]
[361238011,1747386636153,-450.0,0.00013835,2]
[361238012,1747386636162,-450.0,0.00013835,2]
[361238013,1747386636171,-450.0,0.00013835,2]
[361238014,1747386636181,-450.0,0.00013835,2]
[361238015,1747386636190,-450.0,0.00013835,2]
[361238016,1747386636200,-450.0,0.00013835,2]
[361238017,1747386636209,-489.38556713,0.00013835,2]
[361238018,1747386636219,-450.0,0.00013835,2]
[361238019,1747386636228,-835.1,0.00013835,2]
[361238020,1747386636238,-450.0,0.00013835,2]
[361238021,1747386636247,-503.97,0.00013835,2]
[361238022,1747386636256,-450.0,0.00013835,2]
[361238023,1747386636265,-450.0,0.00013835,2]
[361238024,1747386636275,-958.69,0.00013835,2]
[361238025,1747386636284,-1818.67,0.00013835,2]
[361238026,1747386636294,-450.0,0.00013835,2]
[361238027,1747386636303,-450.0,0.00013835,2]
[361238028,1747386636312,-450.0,0.00013835,2]
[361238029,1747386636322,-450.0,0.00013835,2]
[361238030,1747386636331,-450.0,0.00013835,2]
[361238031,1747386636341,-450.0,0.00013835,2]
[361238032,1747386636350,-450.0,0.00013835,2]
[361238033,1747386636359,-450.0,0.00013835,2]
[361238034,1747386636370,-609.04,0.00013835,2]
[361238035,1747386636380,-1502.09,0.00013835,2]
[361238036,1747386636389,-1843.89,0.00013835,2]
[361238037,1747386636398,-915.63,0.00013835,2]
[361238038,1747386636407,-1002.57,0.00013835,2]
[361238039,1747386636417,-1072.1,0.00013835,2]
[361238040,1747386636426,-900.15,0.00013835,2]
[361238041,1747386636438,-807.18,0.00013835,2]
[361238042,1747386636447,-450.0,0.00013835,2]
[361238043,1747386636457,-1856.18,0.00013835,2]
[361238044,1747386636466,-307.00873692,0.00013835,2]
[361238045,1747386636477,-450.0,0.00013835,2]
[361238046,1747386636487,-1228.02,0.00013835,2]
[361238047,1747386636496,-1051.14,0.00013835,2]
[361238048,1747386636507,-450.0,0.00013835,2]
[361238049,1747386636517,-450.0,0.00013835,2]
[361238050,1747386636527,-1018.05,0.00013835,2]
[361238051,1747386636536,-450.0,0.00013835,2]
[361238052,1747386636546,-521.33,0.00013835,2]
[361238053,1747386636555,-1008.1,0.00013835,2]
[361238054,1747386636565,-536.04,0.00013835,2]
[361238055,1747386636574,-4338.11,0.00013835,2]
[361238056,1747386636584,-2951.78,0.00013835,2]
[361238057,1747386636593,-450.0,0.00013835,2]
[361238058,1747386636603,-450.0,0.00013835,2]
[361238059,1747386636613,-450.0,0.00013835,2]
[361238060,1747386636624,-5428.22,0.00013835,2]
[361238061,1747386636635,-450.0,0.00013835,2]
[361238062,1747386636646,-998.12,0.00013835,2]
[361238063,1747386636655,-450.0,0.00013835,2]
[361238064,1747386636665,-450.0,0.00013835,2]
[361238065,1747386636674,-4065.78,0.00013835,2]
[361238066,1747386636684,-1248.32,0.00013835,2]
[361238067,1747386636693,-6901.5,0.00013835,2]
[361238068,1747386636702,-450.0,0.00013835,2]
[361238069,1747386636711,-2287.91,0.00013835,2]
[361238070,1747386636723,-1364.48,0.00013835,2]
[361238071,1747386636732,-722.77,0.00013835,2]
[361238072,1747386636742,-450.0,0.00013835,2]
[361238073,1747386636751,-450.0,0.00013835,2]
[361238074,1747386636762,-1700.05,0.00013835,2]
[361238075,1747386636773,-652.8,0.00013835,2]
[361238076,1747386636783,-727.78,0.00013835,2]
[361238077,1747386636793,-524.13,0.00013835,2]
[361238078,1747386636802,-450.0,0.00013835,2]
[361238079,1747386636811,-494.77,0.00013835,2]
[361238080,1747386636821,-662.99,0.00013835,2]
[361238081,1747386636830,-522.99,0.00013835,2]
[361238082,1747386636840,-636.84,0.00013835,2]
[361238083,1747386636849,-2023.57,0.00013835,2]
[361238084,1747386636859,-899.44,0.00013835,2]
[361238085,1747386636870,-450.0,0.00013835,2]
[361238086,1747386636879,-450.0,0.00013835,2]
[361238087,1747386636888,-2828.7,0.00013835,2]
[361238088,1747386636897,-3470.36,0.00013835,2]
[361238089,1747386636906,-450.0,0.00013835,2]
[361238090,1747386636916,-519.95,0.00013835,2]
[361238091,1747386636925,-475.43,0.00013835,2]
[361238092,1747386636934,-732.75,0.00013835,2]
[361238093,1747386636943,-648.98,0.00013835,2]
[361238094,1747386636953,-450.0,0.00013835,2]
[361238095,1747386636962,-644.47,0.00013835,2]
[361238096,1747386636971,-450.0,0.00013835,2]
[361238097,1747386636980,-458.65,0.00013835,2]
[361238098,1747386636990,-450.0,0.00013835,2]
[361238099,1747386636999,-450.0,0.00013835,2]
[361238100,1747386637008,-456.01,0.00013835,2]
[361238101,1747386637017,-591.69,0.00013835,2]
[361238102,1747386637026,-1298.63,0.00013835,2]
[361238103,1747386637035,-876.3,0.00013835,2]
[361238104,1747386637044,-450.0,0.00013835,2]
[361238105,1747386637054,-798.03,0.00013835,2]
[361238106,1747386637063,-2349.74,0.00013835,2]
[361238107,1747386637072,-747.51,0.00013835,2]
[361238108,1747386637081,-1088.85,0.00013835,2]
[361238109,1747386637090,-450.0,0.00013835,2]
[361238110,1747386637099,-450.0,0.00013835,2]
[361238111,1747386637109,-450.0,0.00013835,2]
[361238112,1747386637120,-1330.15,0.00013835,2]
[361238113,1747386637129,-662.92,0.00013835,2]
[361238114,1747386637138,-450.0,0.00013835,2]
[361238115,1747386637147,-568.04056369,0.00013866,2]
[361238116,1747386637156,-217.431,0.00013916,2]
[361238117,1747386637166,-450.0,0.00013972,2]
[361238118,1747386637175,-450.0,0.00013972,2]
[361238119,1747386637183,-450.0,0.00013972,2]
[361238120,1747386637192,-1198.62,0.00013972,2]
[361238121,1747386637201,-450.0,0.00013972,2]
[361238122,1747386637210,-450.0,0.00013972,2]
[361238123,1747386637219,-501.3,0.00013972,2]
[361238124,1747386637228,-618.05,0.00013972,2]
[361238125,1747386637237,-450.0,0.00013972,2]
[361238126,1747386637246,-450.0,0.00013972,2]
[361238127,1747386637255,-450.0,0.00013972,2]
[361238128,1747386637264,-266.98365572,0.00013972,2]
[361238129,1747386637273,-450.0,0.00013972,2]
[361238130,1747386637282,-515.18,0.00013972,2]
[361238131,1747386637291,-450.0,0.00013972,2]
[361238132,1747386637300,-450.0,0.00013972,2]
[361238133,1747386637309,-526.6739715,0.00013972,2]
[361238134,1747386637319,-450.0,0.00013972,2]
[361238135,1747386637328,-450.0,0.00013972,2]
[361238136,1747386637338,-450.0,0.00013972,2]
[361238137,1747386637347,-450.0,0.00013972,2]
[361238138,1747386637357,-835.1,0.00013972,2]
[361238139,1747386637367,-450.0,0.00013972,2]
[361238140,1747386637376,-503.97,0.00013972,2]
[361238141,1747386637385,-450.0,0.00013972,2]
[361238142,1747386637394,-450.0,0.00013972,2]
[361238143,1747386637403,-958.69,0.00013972,2]
[361238144,1747386637412,-1818.67,0.00013972,2]
[361238145,1747386637421,-450.0,0.00013972,2]
[361238146,1747386637433,-450.0,0.00013972,2]
[361238147,1747386637443,-450.0,0.00013972,2]
[361238148,1747386637453,-450.0,0.00013972,2]
[361238149,1747386637462,-450.0,0.00013972,2]
[361238150,1747386637472,-450.0,0.00013972,2]
[361238151,1747386637482,-450.0,0.00013972,2]
[361238152,1747386637492,-172.0986953,0.00013972,2]
[361238153,1747386637501,-609.04,0.00013972,2]
[361238154,1747386637512,-1502.09,0.00013972,2]
[361238155,1747386637521,-1843.89,0.00013972,2]
[361238156,1747386637530,-915.63,0.00013972,2]
[361238157,1747386637539,-1002.57,0.00013972,2]
[361238158,1747386637549,-1072.1,0.00013972,2]
[361238159,1747386637558,-900.15,0.00013972,2]
[361238160,1747386637567,-807.18,0.00013972,2]
[361238161,1747386637577,-450.0,0.00013972,2]
[361238162,1747386637586,-1856.18,0.00013972,2]
[361238163,1747386637595,-450.0,0.00013972,2]
[361238164,1747386637604,-1228.02,0.00013972,2]
[361238165,1747386637614,-1051.14,0.00013972,2]
[361238166,1747386637624,-450.0,0.00013972,2]
[361238167,1747386637633,-450.0,0.00013972,2]
[361238168,1747386637643,-1018.05,0.00013972,2]
[361238169,1747386637652,-450.0,0.00013972,2]
[361238170,1747386637662,-521.33,0.00013972,2]
[361238171,1747386637671,-1008.1,0.00013972,2]
[361238172,1747386637681,-536.04,0.00013972,2]
[361238173,1747386637690,-4338.11,0.00013972,2]
[361238174,1747386637699,-2951.78,0.00013972,2]
[361238175,1747386637709,-364.17238505,0.00013972,2]
[361238176,1747386637718,-450.0,0.00013972,2]
[361238177,1747386637728,-450.0,0.00013972,2]
[361238178,1747386637737,-5428.22,0.00013972,2]
[361238179,1747386637747,-450.0,0.00013972,2]
[361238180,1747386637757,-998.12,0.00013972,2]
[361238181,1747386637766,-450.0,0.00013972,2]
[361238182,1747386637775,-450.0,0.00013972,2]
[361238183,1747386637785,-1248.32,0.00013972,2]
[361238184,1747386637794,-6901.5,0.00013972,2]
[361238185,1747386637804,-4065.78,0.00013972,2]
[361238186,1747386637814,-450.0,0.00013972,2]
[361238187,1747386637823,-2287.91,0.00013972,2]
[361238188,1747386637832,-1364.48,0.00013972,2]
[361238189,1747386637841,-722.77,0.00013972,2]
[361238190,1747386637851,-450.0,0.00013972,2]
[361238191,1747386637860,-450.0,0.00013972,2]
[361238192,1747386637870,-1700.05,0.00013972,2]
[361238193,1747386637880,-652.8,0.00013972,2]
[361238194,1747386637889,-727.78,0.00013972,2]
[361238195,1747386637899,-524.13,0.00013972,2]
[361238196,1747386637909,-450.0,0.00013972,2]
[361238197,1747386637919,-494.77,0.00013972,2]
[361238198,1747386637929,-662.99,0.00013972,2]
[361238200,1747386637939,-522.99,0.00013972,2]
[361238202,1747386637948,-636.84,0.00013972,2]
[361238203,1747386637958,-899.44,0.00013972,2]
[361238204,1747386637967,-2023.57,0.00013972,2]
[361238205,1747386637977,-450.0,0.00013972,2]
[361238206,1747386637986,-450.0,0.00013972,2]
[361238207,1747386637995,-2828.7,0.00013972,2]
[361238208,1747386638005,-3470.36,0.00013972,2]
[361238209,1747386638015,-450.0,0.00013972,2]
[361238210,1747386638025,-519.95,0.00013972,2]
[361238211,1747386638035,-475.43,0.00013972,2]
[361238212,1747386638045,-732.75,0.00013972,2]
[361238213,1747386638055,-648.98,0.00013972,2]
[361238214,1747386638065,-450.0,0.00013972,2]
[361238215,1747386638075,-644.47,0.00013972,2]
[361238216,1747386638084,-450.0,0.00013972,2]
[361238217,1747386638093,-458.65,0.00013972,2]
[361238218,1747386638103,-450.0,0.00013972,2]
[361238220,1747386638113,-450.0,0.00013972,2]
[361238222,1747386638127,-456.01,0.00013972,2]
[361238225,1747386638137,-1298.63,0.00013972,2]
[361238226,1747386638147,-591.69,0.00013972,2]
[361238227,1747386638158,-876.3,0.00013972,2]
[361238229,1747386638171,-450.0,0.00013972,2]
[361238231,1747386638182,-798.03,0.00013972,2]
[361238232,1747386638191,-2349.74,0.00013972,2]
[361238233,1747386638201,-747.51,0.00013972,2]
[361238234,1747386638211,-1088.85,0.00013972,2]
[361238235,1747386638221,-450.0,0.00013972,2]
[361238236,1747386638230,-450.0,0.00013972,2]
[361238237,1747386638240,-450.0,0.00013972,2]
[361238238,1747386638250,-1330.15,0.00013972,2]
[361238240,1747386638259,-662.92,0.00013972,2]
[361238242,1747386638269,-450.0,0.00013972,2]
[361238244,1747386638279,-500.0,0.00013973,2]
[361238246,1747386638288,-460.06324498,0.00013973,2]
[361238248,1747386638298,-500.0,0.00013973,2]
[361238254,1747386638454,-500.47502872,0.00013973,2]
[361238255,1747386638465,-500.0,0.00013973,2]
[361238256,1747386638474,-501.56390766,0.00013973,2]
[361238257,1747386638485,-502.13683846,0.00013973,2]
[361238258,1747386638494,-500.0,0.00013973,2]
[361238259,1747386638504,-469.91626972,0.00013973,2]
[361238260,1747386638513,-500.0,0.00013973,2]
[361238261,1747386638523,-626.57542537,0.00013973,2]
[361238263,1747386638532,-500.0,0.00013973,2]
[361238265,1747386638541,-500.0,0.00013973,2]
[361238266,1747386638550,-505.13278578,0.00013973,2]
[361238267,1747386638560,-500.0,0.00013973,2]
[361238268,1747386638569,-441.97592994,0.00013973,2]
[361238269,1747386638578,-500.0,0.00013973,2]
[361238270,1747386638587,-500.0,0.00013973,2]
[361238271,1747386638597,-500.0,0.00013973,2]
[361238272,1747386638606,-159.35607526,0.00013973,2]
[361238273,1747386638620,-500.0,0.00013973,2]
[361238274,1747386638629,-500.0,0.00013973,2]
[361238275,1747386638638,-500.0,0.00013973,2]
[361238276,1747386638646,-500.0,0.00013973,2]
[361238277,1747386638656,-500.0,0.00013973,2]
[361238278,1747386638665,-500.0,0.00013973,2]
[361238279,1747386638675,-500.0,0.00013973,2]
[361238280,1747386638685,-500.0,0.00013973,2]
[361238281,1747386638694,-500.0,0.00013973,2]
[361238282,1747386638703,-500.0,0.00013973,2]
[361238283,1747386638713,-500.0,0.00013973,2]
[361238284,1747386638722,-398.54845533,0.00013973,2]
[361238285,1747386638732,-500.0,0.00013973,2]
[361238286,1747386638742,-500.0,0.00013973,2]
[361238287,1747386638751,-500.0,0.00013973,2]
[361238288,1747386638761,-186.4932393,0.00013973,2]
[361238289,1747386638772,-503.06680513,0.00013973,2]
[361238290,1747386638781,-500.0,0.00013973,2]
[361238291,1747386638790,-500.0,0.00013973,2]
[361238292,1747386638800,-500.0,0.00013973,2]
[361238293,1747386638810,-502.05588619,0.00013973,2]
[361238294,1747386638819,-500.61019185,0.00013973,2]
[361238295,1747386638829,-500.0,0.00013973,2]
[361238296,1747386638838,-500.0,0.00013973,2]
[361238297,1747386638847,-500.0,0.00013973,2]
[361238298,1747386638856,-500.0,0.00013973,2]
[361238299,1747386638867,-500.4912934,0.00013973,2]
[361238300,1747386638877,-201.38116379,0.00013973,2]
[361238301,1747386638887,-591.0565402,0.00013973,2]
[361238302,1747386638898,-500.0,0.00013973,2]
[361238303,1747386638907,-172.8307344,0.00014,2]
[361238304,1747386638917,-212.26722696,0.00014,3]
[361238305,1747386638926,-17480.57085028,0.00014,3]
[361238306,1747386638936,-26563.88228709,0.00014,2]
[361238307,1747386638946,-15049.39405922,0.00014,2]
[361238308,1747386638955,-15049.39405921,0.00014,2]
[361238309,1747386638965,-15049.39405921,0.00014,2]
[361238310,1747386638974,-15049.39405921,0.00014,2]
[361238311,1747386638984,-15049.39405921,0.00014,2]
[361238312,1747386638993,-15049.39405921,0.00014,2]
[361238313,1747386639002,-15049.39405921,0.00014,2]
[361238314,1747386639012,-15049.39405921,0.00014,2]
[361238315,1747386639021,-15049.39405921,0.00014,2]
[361238316,1747386639031,-15049.39405921,0.00014,2]
[361238317,1747386639040,-15049.39405921,0.00014,2]
[361238318,1747386639050,-250.0,0.00014,2]
[361238319,1747386639059,-250.0,0.00014,2]
[361238320,1747386639069,-250.0,0.00014,2]
[361238321,1747386639079,-154.909102,0.00014,2]
[361238322,1747386639089,-151.0,0.00014,2]
[361238323,1747386639098,-151.0,0.00014,2]
[361238324,1747386639107,-2200.0,0.00014003,2]
[361238325,1747386639117,-500.0,0.00014003,2]
[361238326,1747386639127,-2176.81294209,0.00014038,2]
[361238327,1747386639176,-755.71694621,0.00014038,2]
[361238328,1747386639188,-1026.20238693,0.00014038,2]
[361238332,1747386640063,-5000.0,0.00012769,2]
[361238333,1747386640075,-500.0,0.00012898,2]
[361238334,1747386640087,-563.5667068,0.00012898,2]
[361238335,1747386640099,-500.0,0.00012898,2]
[361238336,1747386640112,-500.0,0.00012898,2]
[361238337,1747386640126,-500.0,0.00012898,2]
[361238338,1747386640136,-500.0,0.00012898,2]
[361238340,1747386640148,-328.29331157,0.00012898,2]
[361238341,1747386640160,-500.0,0.00012898,2]
[361238342,1747386640172,-500.0,0.00012898,2]
[361238343,1747386640183,-500.0,0.00012898,2]
[361238344,1747386640196,-500.0,0.00012898,2]
[361238345,1747386640208,-500.0,0.00012898,2]
[361238346,1747386640220,-500.0,0.00012898,2]
[361238347,1747386640231,-183.29786775,0.00012898,2]
[361238348,1747386640241,-500.0,0.00012898,2]
[361238349,1747386640251,-500.0,0.00012898,2]
[361238350,1747386640262,-272.0049519,0.00012898,2]
[361238351,1747386640274,-500.0,0.00012898,2]
[361238352,1747386640286,-500.0,0.00012898,2]
[361238353,1747386640298,-500.0,0.00012898,2]
[361238355,1747386640309,-500.0,0.00012898,2]
[361238356,1747386640321,-500.0,0.00012898,2]
[361238357,1747386640333,-500.0,0.00012898,2]
[361238358,1747386640345,-500.0,0.00012898,2]
[361238359,1747386640357,-500.0,0.00012898,2]
[361238360,1747386640370,-396.99322859,0.00012898,2]
[361238361,1747386640383,-500.0,0.00012898,2]
[361238362,1747386640395,-500.0,0.00012898,2]
[361238364,1747386640405,-564.33073804,0.00012898,2]
[361238366,1747386640415,-500.0,0.00012898,2]
[361238368,1747386640425,-500.0,0.00012898,2]
[361238370,1747386640436,-500.0,0.00012898,2]
[361238372,1747386640447,-500.0,0.00012898,2]
[361238374,1747386640459,-500.0,0.00012898,2]
[361238376,1747386640472,-223.7495554,0.00012898,2]
[361238379,1747386640485,-500.0,0.00012898,2]
[361238381,1747386640495,-500.0,0.00012898,2]